lending/lending_fUSD_20260101
["ID","MTS","AMOUNT","RATE_DAILY","PERIOD"]
[400278219,1767252556153,-237.38,0.000143,2]
[400278220,1767252556173,-178.67,0.000143,5]
[400278221,1767252556193,-163.08,0.00014688,2]
[400278222,1767252556214,-55.8842,0.00014945,2]
[400278234,1767252631849,-200.0,0.00014733,2]
[400278235,1767252631859,-374.22673154,0.00014945,2]
[400278236,1767252631870,-988.28202685,0.00014945,2]
[400278237,1767252631888,-510.80704161,0.00014945,2]
[400278238,1767252631897,-181.969832,0.00015,2]
[400278239,1767252631907,-237.38,0.000151,2]
[400278240,1767252631917,-438.6338671,0.00015169,2]
[400278241,1767252631929,-561.3661329,0.00015169,2]
[400278242,1767252631939,-51.18144114,0.00015173,2]
[400278243,1767252631951,-148.81855886,0.00015173,2]
[400278244,1767252631961,-171.03,0.000152,2]
[400278245,1767252631970,-300.0,0.00015287,2]
[400278246,1767252631980,-226.90399083,0.00015288,2]
[400278247,1767252631990,-150.0,0.00015288,2]
[400278248,1767252631999,-150.0,0.00015288,2]
[400278249,1767252632009,-150.0,0.00015288,2]
[400278250,1767252632019,-151.31321918,0.00015288,2]
[400278251,1767252632028,-150.0,0.00015288,2]
[400278252,1767252632038,-196.8511235,0.00015288,2]
[400278253,1767252632048,-11.74854685,0.00015288,2]
[400278254,1767252632060,-138.25145315,0.00015288,2]
[400278255,1767252632070,-171.03,0.000153,2]
[400278256,1767252632080,-500.0,0.00015416,2]
[400278257,1767252632090,-500.0,0.00015416,2]
[400278258,1767252632100,-500.0,0.00015416,2]
[400278259,1767252632110,-186.26906812,0.00015416,2]
[400278261,1767252632120,-364.33000068,0.00015416,2]
[400278262,1767252632130,-500.0,0.00015416,2]
[400278263,1767252632140,-500.0,0.00015416,2]
[400278264,1767252632150,-244.75814929,0.00015416,2]
[400278265,1767252632160,-300.0,0.00015416,2]
[400278266,1767252632170,-2265.38755953,0.00015417,2]
[400278267,1767252632180,-402.55836504,0.00015417,2]
[400278268,1767252632191,-171.03,0.000155,2]
[400278269,1767252632200,-171.03,0.000155,2]
[400278271,1767252632210,-635.53169455,0.00015504,2]
[400278273,1767252632225,-193.33192982,0.00015504,2]
[400278274,1767252632235,-422.01171058,0.00015504,2]
[400278275,1767252632245,-168.3522518,0.00015504,2]
[400278276,1767252632254,-4514.61843881,0.00015505,2]
[400278277,1767252632271,-1014.31929586,0.00015505,2]
[400278278,1767252632282,-861.87017049,0.00015505,2]
[400278279,1767252632295,-951.08382587,0.00015505,2]
[400278280,1767252632307,-1326.4511873,0.00015505,2]
[400278281,1767252632319,-552.27503323,0.00015505,2]
[400278282,1767252632331,-4666.21162689,0.00015505,2]
[400278283,1767252632343,-8406.3084529,0.00015505,2]
[400278284,1767252632357,-2257.89935505,0.00015505,2]
[400278290,1767252637998,-21140.7663994,0.00015505,2]
[400278291,1767252638011,-999.0,0.00015505,2]
[400278292,1767252638023,-3619.89584989,0.00015505,2]
[400278293,1767252638078,-821.0,0.00015505,2]
[400278294,1767252638090,-3256.99768439,0.00015505,2]
[400278430,1767252639994,-5406.50649121,0.00015505,2]
[400278431,1767252640210,-662302.91256683,0.00015505,2]
[400278447,1767252645916,-12309.00009192,0.00015505,2]
[400278448,1767252645930,-592.40075735,0.00015505,2]
[400278449,1767252645943,-383.87296915,0.00015505,2]
[400278450,1767252645992,-10857.50445949,0.00015505,2]
[400278451,1767252646007,-1008.24074895,0.00015505,2]
[400278456,1767252687316,178.04,0.00015,7]
[400278457,1767252688048,178.67,0.000142,5]
[400278556,1767253213104,198.23,7.292e-05,2]
[400278557,1767253219531,1691.61214627,0.00010598,2]
[400278558,1767253219644,668.3132812,0.00010598,2]
[400278560,1767253279717,744.90715104,0.00010598,2]
[400278666,1767253748175,-198.23,0.00010938,2]
[400278667,1767253748199,-200.0,0.00010959,2]
[400278668,1767253748220,-250.0,0.00012032,2]
[400278669,1767253748242,-1000.0,0.00013699,2]
[400278670,1767253748268,-268.16,0.00014222,2]
[400278671,1767253748292,-166.66,0.00014384,2]
[400278672,1767253748314,-2199.633398,0.00014496,2]
[400278678,1767253832010,-150.0,0.00014267,2]
[400278679,1767253832020,-176.71333278,0.00014324,2]
[400278680,1767253832032,-18.28666722,0.00014324,2]
[400278681,1767253832042,-600.0,0.00014381,2]
[400278682,1767253832052,-195.0,0.00014435,2]
[400278683,1767253832062,-355.32706604,0.00014493,2]
[400278684,1767253832072,-707.626602,0.00014496,2]
[400278685,1767253832082,-354.35076502,0.0001454,2]
[400278686,1767253832091,-173.33,0.00014578,2]
[400278687,1767253832101,-198.23,0.00014584,2]
[400278688,1767253832111,-171.03,0.000146,2]
[400278689,1767253832120,-171.03,0.000146,2]
[400278690,1767253832134,-338.42,0.000146,2]
[400278691,1767253832144,-1509.77,0.00014657,2]
[400278692,1767253832154,-166.66,0.00014686,2]
[400278693,1767253832164,-500.0,0.00014822,2]
[400278694,1767253832173,-167.29,0.00014882,2]
[400278695,1767253832183,-2981.09640098,0.000149,2]
[400278696,1767253832195,-1873.35586263,0.000149,2]
[400278697,1767253832206,-25145.54773639,0.000149,2]
[400278698,1767253832216,-171.03,0.00014978,2]
[400278699,1767253832226,-166.66,0.00014989,2]
[400278700,1767253832235,-171.03,0.00015,2]
[400278701,1767253832245,-178.74,0.00015,2]
[400278702,1767253832255,-951.65,0.00015,2]
[400278703,1767253832264,-158.0,0.00015068,2]
[400278704,1767253832278,-500.0,0.00015095,2]
[400278705,1767253832288,-500.0,0.00015095,2]
[400278706,1767253832297,-500.0,0.00015095,2]
[400278707,1767253832308,-500.0,0.00015095,2]
[400278708,1767253832319,-500.0,0.00015095,2]
[400278711,1767253832331,-500.0,0.00015095,2]
[400278712,1767253832340,-500.0,0.00015095,2]
[400278713,1767253832350,-500.0,0.00015095,2]
[400278714,1767253832360,-500.0,0.00015095,2]
[400278715,1767253832369,-500.0,0.00015095,2]
[400278716,1767253832379,-500.0,0.00015095,2]
[400278717,1767253832389,-500.0,0.00015095,2]
[400278719,1767253832399,-500.0,0.00015095,2]
[400278721,1767253832408,-500.0,0.00015095,2]
[400278723,1767253832417,-500.0,0.00015095,2]
[400278725,1767253832427,-500.0,0.00015095,2]
[400278726,1767253832436,-500.0,0.00015095,2]
[400278727,1767253832446,-500.0,0.00015095,2]
[400278729,1767253832456,-500.0,0.00015095,2]
[400278730,1767253832465,-500.0,0.00015095,2]
[400278731,1767253832474,-500.0,0.00015095,2]
[400278732,1767253832483,-240.48555034,0.00015095,2]
[400278733,1767253832493,-500.0,0.00015095,2]
[400278734,1767253832503,-500.0,0.00015095,2]
[400278736,1767253832512,-500.0,0.00015095,2]
[400278737,1767253832522,-282.25,0.00015095,2]
[400278738,1767253832531,-660.35,0.00015096,2]
[400278739,1767253832540,-660.35,0.00015096,2]
[400278740,1767253832550,-1320.61,0.00015096,2]
[400278741,1767253832560,-660.35,0.00015096,2]
[400278742,1767253832569,-213.51147464,0.00015096,2]
[400278743,1767253832581,-251.0,0.00015096,2]
[400278744,1767253832593,-195.83852536,0.00015096,2]
[400278745,1767253832602,-324.72342037,0.00015096,2]
[400278749,1767253838106,-335.62657963,0.00015096,2]
[400278750,1767253838116,-500.0,0.00015096,2]
[400278751,1767253838126,-171.03,0.000151,2]
[400278752,1767253838135,-171.03,0.00015178,2]
[400278753,1767253838145,-2500.0,0.00015216,2]
[400278754,1767253838155,-1000.0,0.00015216,2]
[400278755,1767253838164,-188.39139826,0.00015261,2]
[400278756,1767253838174,-171.03,0.00015278,2]
[400278757,1767253838184,-150.4343184,0.00015288,2]
[400278758,1767253838193,-150.37867968,0.00015288,2]
[400278759,1767253838202,-152.23399249,0.00015288,2]
[400278760,1767253838212,-150.0,0.00015288,2]
[400278761,1767253838222,-150.0,0.00015288,2]
[400278762,1767253838231,-300.0,0.00015292,2]
[400278763,1767253838241,-166.66,0.00015292,2]
[400278764,1767253838250,-6125.19411714,0.00015294,2]
[400278765,1767253838277,-3706.78986362,0.00015294,2]
[400278766,1767253838286,-374.81185292,0.00015294,2]
[400278767,1767253838298,-1858.69650473,0.00015294,2]
[400278768,1767253838307,-200.0,0.00015307,2]
[400278769,1767253838317,-187.86027268,0.00015307,2]
[400278770,1767253838326,-151.0,0.00015313,2]
[400278771,1767253838335,-444.87218618,0.00015315,2]
[400278772,1767253838345,-295.4081974,0.00015315,2]
[400278774,1767253838354,-38735.84283901,0.00015316,2]
[400278776,1767253838366,-2526.07203788,0.00015316,2]
[400278961,1767253840153,-2859.88288406,0.00015316,2]
[400278964,1767253840175,-97431.7542494,0.00015316,2]
[400278968,1767253840198,-325.929999,0.00015316,2]
[400278970,1767253840210,-841.0,0.00015316,2]
[400278972,1767253840221,-500.0,0.00015316,2]
[400278976,1767253840240,-876.879847,0.00015316,2]
[400278978,1767253840251,-1378.47091591,0.00015316,2]
[400278988,1767253840337,-607.11128601,0.00015316,2]
[400279004,1767253844199,-883.59956996,0.00015316,2]
[400279005,1767253844211,-330.24087922,0.00015316,2]
[400279006,1767253846200,-466.77974192,0.00015316,2]
[400279260,1767254434146,-1243.85,0.00014367,2]
[400279261,1767254434172,-19.86561745,0.00014367,2]
[400279503,1767255032325,-500.0,0.00014149,2]
[400279504,1767255032335,-200.0,0.00014252,2]
[400279505,1767255032344,-156.63631246,0.00014267,2]
[400279506,1767255032353,-3240.0,0.00014347,2]
[400279507,1767255032363,-830.29,0.00014367,2]
[400279508,1767255032373,-130.13438255,0.00014367,2]
[400279509,1767255032383,-1500.0,0.00014453,2]
[400279510,1767255032394,-494.06218191,0.00014453,2]
[400279511,1767255032410,-300.0,0.00014502,2]
[400279512,1767255032421,-300.0,0.00014502,2]
[400279513,1767255032431,-191.0,0.00014503,2]
[400279514,1767255032440,-286.845,0.00014504,2]
[400279515,1767255032450,-1580.068,0.00014504,2]
[400279516,1767255032460,-1557.65,0.00014512,2]
[400279517,1767255032474,-3188.6937444,0.00014512,2]
[400279518,1767255032486,-832.33893487,0.00014512,2]
[400279519,1767255032497,-314.58304838,0.00014512,2]
[400279521,1767255032509,-1196.86375132,0.00014512,2]
[400279522,1767255032520,-4467.51052103,0.00014512,2]
[400279523,1767255032530,-191.52,0.00014558,2]
[400279524,1767255032540,-1783.0728,0.000147,2]
[400279525,1767255032549,-57.52774671,0.000147,2]
[400279526,1767255032561,-2442.47225329,0.000147,2]
[400279527,1767255032571,-8848.78558272,0.000147,2]
[400279528,1767255032580,-1104.12,0.000147,2]
[400279529,1767255032590,-175.45410357,0.00014798,2]
[400279530,1767255032600,-500.0,0.00014799,2]
[400279531,1767255032620,-500.0,0.00014799,2]
[400279532,1767255032629,-360.05395004,0.00014799,2]
[400279533,1767255032639,-206.78573818,0.00014799,2]
[400279534,1767255032649,-311.41053033,0.00014799,2]
[400279535,1767255032659,-4767.64556129,0.000148,2]
[400279537,1767255032670,-40320.45231942,0.000148,2]
[400279538,1767255032681,-871.0,0.000148,2]
[400279539,1767255032693,-941.85870651,0.000148,2]
[400279540,1767255032704,-511.86844531,0.000148,2]
[400279541,1767255032715,-1374.32512854,0.000148,2]
[400279542,1767255032726,-1961.78531538,0.000148,2]
[400279544,1767255038367,-694.46353124,0.000148,2]
[400279545,1767255038380,-12965.44379314,0.000148,2]
[400279546,1767255038392,-2816.86303894,0.000148,2]
[400279548,1767255038551,-2847.68822997,0.000148,2]
[400280140,1767255044279,-1451.06,0.00014483,2]
[400280142,1767255044289,-5317.32657573,0.000148,2]
[400280241,1767255045309,-253.88923684,0.000148,2]
[400280244,1767255045327,-512.18092294,0.000148,2]
[400280654,1767256033417,5529.0,0.00014,3]
[400280656,1767256065590,5529.0,0.00014,3]
[400280657,1767256097471,5529.0,0.000138,3]
[400280661,1767256128865,5529.0,0.000138,3]
[400280667,1767256160466,5529.0,0.000142,5]
[400280668,1767256160695,5529.0,0.000136,3]
[400280669,1767256166966,2440.43762534,0.0001,2]
[400280670,1767256172203,-5223.61516373,0.00013,2]
[400280671,1767256192026,5529.0,0.000142,5]
[400280672,1767256192259,5529.0,0.000136,3]
[400280676,1767256223570,5529.0,0.000141,5]
[400280677,1767256223800,5529.0,0.000135,3]
[400280680,1767256231368,-549.90444418,0.000129,2]
[400280682,1767256231395,-999.0,0.000129,2]
[400280685,1767256231424,-17917.71417221,0.000129,2]
[400280687,1767256231435,-10173.38138361,0.000129,2]
[400280688,1767256231445,-300.0,0.00012999,2]
[400280690,1767256231455,-300.0,0.00012999,2]
[400280692,1767256231465,-145.02461494,0.00013081,2]
[400280693,1767256231476,-21.63538506,0.00013081,2]
[400280694,1767256231487,-151.0,0.00013197,2]
[400280695,1767256231496,-166.66,0.00013356,2]
[400280696,1767256231506,-833.13,0.00013498,2]
[400280697,1767256231515,-176.36,0.000135,2]
[400280698,1767256231525,-166.66,0.00013632,2]
[400280699,1767256231534,-987.72,0.00013699,2]
[400280700,1767256231547,-312.4,0.00013814,2]
[400280701,1767256231556,-166.66,0.00013907,2]
[400280702,1767256231566,-461.75,0.00014041,2]
[400280703,1767256231576,-217.98737123,0.0001409,2]
[400280704,1767256231585,-1000.0,0.00014091,2]
[400280705,1767256231595,-166.66,0.00014182,2]
[400280706,1767256231604,-420.0,0.00014256,2]
[400280707,1767256231614,-163.07,0.00014258,2]
[400280708,1767256231623,-250.0,0.00014299,2]
[400280709,1767256231633,-300.0,0.00014299,2]
[400280710,1767256231648,-600.0,0.00014299,2]
[400280711,1767256231658,-300.0,0.00014299,2]
[400280712,1767256231668,-481.83,0.000143,2]
[400280713,1767256231682,-200.0,0.00014312,2]
[400280714,1767256231692,-999.0,0.00014312,3]
[400280715,1767256231702,-557.63794905,0.00014389,2]
[400280716,1767256231712,-481.83,0.000144,2]
[400280717,1767256231722,-150.0,0.00014402,2]
[400280718,1767256231731,-200.0,0.00014402,2]
[400280719,1767256231742,-166.66,0.00014458,2]
[400280720,1767256231752,-500.0,0.000145,2]
[400280721,1767256231762,-500.0,0.000145,2]
[400280722,1767256231772,-500.0,0.000145,2]
[400280723,1767256231781,-23.35740866,0.000146,2]
[400280724,1767256231793,-531.41259134,0.000146,2]
[400280726,1767256231803,-300.0,0.000146,2]
[400280727,1767256231813,-178.74,0.000146,2]
[400280728,1767256231822,-105.34740866,0.000146,2]
[400280729,1767256231837,-307.91542224,0.000146,2]
[400280730,1767256231849,-68.6671691,0.000146,2]
[400280731,1767256231859,-172.67264667,0.000146,2]
[400280732,1767256231868,-303.37,0.000146,2]
[400280733,1767256231877,-300.0,0.000146,2]
[400280734,1767256231888,-481.93,0.000146,2]
[400280735,1767256231898,-354.13,0.000146,2]
[400280736,1767256231908,-481.17,0.000146,2]
[400280737,1767256231917,-1669.5182385,0.000146,2]
[400280738,1767256237716,-905.57165547,0.000146,2]
[400280739,1767256237726,-2500.0,0.000146,2]
[400280740,1767256237737,-8510.77485285,0.000146,2]
[400280741,1767256237747,-301.07,0.00014678,2]
[400280742,1767256237757,-159.17636968,0.00014682,2]
[400280743,1767256237810,-40.82363032,0.00014682,2]
[400280744,1767256237820,-994.15096847,0.0001469,2]
[400281129,1767256245066,-125.9973,0.0001469,2]
[400281130,1767256245145,-1910.8132925,0.0001469,2]
[400281131,1767256245155,-151.0,0.00014691,2]
[400281132,1767256245166,-151.0,0.00014691,2]
[400281133,1767256245175,-151.0,0.00014691,2]
[400281134,1767256245185,-151.0,0.00014691,2]
[400281135,1767256245194,-151.0,0.00014691,2]
[400281136,1767256245204,-151.0,0.00014691,2]
[400281137,1767256245214,-151.0,0.00014691,2]
[400281138,1767256245223,-154.22792594,0.00014691,2]
[400281139,1767256245232,-151.0,0.00014691,2]
[400281140,1767256245242,-151.0,0.00014691,2]
[400281141,1767256245252,-151.0,0.00014691,2]
[400281142,1767256245262,-151.0,0.00014691,2]
[400281143,1767256245271,-151.0,0.00014691,2]
[400281144,1767256245281,-151.0,0.00014691,2]
[400281145,1767256245291,-151.0,0.00014691,2]
[400281146,1767256245300,-275.98575463,0.00014691,2]
[400281147,1767256245310,-1577.575,0.00014699,2]
[400281148,1767256245320,-168.775,0.00014699,2]
[400281149,1767256245330,-1000000.0,0.000147,2]
[400281150,1767256245339,-645.5136,0.000147,2]
[400281151,1767256245349,-481.93,0.000147,2]
[400281152,1767256245359,-178.74,0.000147,2]
[400281153,1767256245369,-171.03,0.000147,2]
[400281154,1767256245378,-500.0,0.000147,2]
[400281155,1767256245388,-502.88758259,0.000147,2]
[400281156,1767256245398,-266.72,0.00014791,2]
[400281157,1767256245407,-620.0,0.00014823,2]
[400281158,1767256245418,-500.0,0.00014823,2]
[400281159,1767256245427,-601.37882442,0.00014823,2]
[400281160,1767256245437,-500.0,0.00014823,2]
[400281161,1767256245448,-500.0,0.00014823,2]
[400281162,1767256245458,-500.0,0.00014823,2]
[400281163,1767256245468,-500.0,0.00014823,2]
[400281164,1767256245477,-500.0,0.00014823,2]
[400281165,1767256245487,-500.0,0.00014823,2]
[400281166,1767256245498,-500.0,0.00014823,2]
[400281167,1767256245508,-500.0,0.00014823,2]
[400281168,1767256245517,-500.0,0.00014823,2]
[400281169,1767256245527,-500.0,0.00014823,2]
[400281170,1767256245537,-500.0,0.00014823,2]
[400281171,1767256245548,-500.0,0.00014823,2]
[400281172,1767256245557,-500.0,0.00014823,2]
[400281173,1767256245566,-500.0,0.00014823,2]
[400281174,1767256245576,-629.29506453,0.00014823,2]
[400281175,1767256245586,-200.0,0.00014823,2]
[400281176,1767256245595,-207.4,0.00014823,2]
[400281177,1767256245605,-215.0738,0.00014823,2]
[400281178,1767256245614,-223.0315306,0.00014823,2]
[400281179,1767256245624,-231.28369723,0.00014823,2]
[400281180,1767256245634,-239.84119403,0.00014823,2]
[400281181,1767256245644,-387.66922251,0.00014823,2]
[400281182,1767256245655,-2575.08989395,0.00014856,2]
[400281183,1767256245664,-8510.77485278,0.00014856,2]
[400281184,1767256245673,-30000.0,0.000149,2]
[400281185,1767256245686,-1019.0,0.000149,2]
[400281186,1767256245697,-242.20493448,0.00015,2]
[400281187,1767256245707,-266.72,0.00015065,2]
[400281188,1767256245716,-157.25192,0.000151,2]
[400281189,1767256245725,-242.852946,0.00015111,2]
[400281190,1767256245735,-2575.08989395,0.00015111,2]
[400281191,1767256245744,-8510.77485278,0.00015111,2]
[400281192,1767256245754,-163.07,0.00015149,2]
[400281193,1767256245764,-4504.0,0.00015207,2]
[400281194,1767256245774,-201.91382998,0.00015287,2]
[400281195,1767256245783,-150.0,0.00015288,2]
[400281196,1767256245793,-150.0,0.00015288,2]
[400281197,1767256245803,-150.0,0.00015288,2]
[400281198,1767256245812,-150.0,0.00015288,2]
[400281199,1767256245822,-150.0,0.00015288,2]
[400281200,1767256245831,-150.0,0.00015288,2]
[400281201,1767256245840,-78577.2429483,0.00015297,2]
[400281202,1767256245850,-3560.4409575,0.00015297,2]
[400281203,1767256245860,-9999.99,0.0001531,2]
[400281204,1767256245869,-18417.76,0.0001531,2]
[400281205,1767256245879,-151.0,0.00015316,2]
[400281206,1767256245888,-200.0,0.00015316,2]
[400281207,1767256245898,-200.0,0.00015316,2]
[400281208,1767256245907,-266.72,0.00015339,2]
[400281209,1767256245916,-2575.08989395,0.00015367,2]
[400281210,1767256245926,-8510.77485278,0.00015367,2]
[400281211,1767256245936,-705.85440107,0.00015385,2]
[400281212,1767256245946,-250.0,0.00015399,2]
[400281213,1767256245956,-377.874825,0.000154,4]
[400281214,1767256245966,-200.0,0.00015469,2]
[400281215,1767256245975,-200.0,0.00015469,2]
[400281216,1767256245986,-1115.60769283,0.00015499,5]
[400281217,1767256245995,-52366.14288458,0.000155,5]
[400281218,1767256246005,-1000.0,0.00015505,2]
[400281219,1767256246014,-1000.0,0.00015505,2]
[400281220,1767256246024,-1000.0,0.00015505,2]
[400281221,1767256246033,-791.02317316,0.00015505,2]
[400281222,1767256246042,-10000.0,0.00015505,2]
[400281223,1767256246052,-255.0,0.00015526,2]
[400281224,1767256246061,-151.0,0.00015564,2]
[400281225,1767256246071,-151.0,0.00015564,2]
[400281226,1767256246080,-1258.0,0.00015564,2]
[400281227,1767256246091,-151.0,0.00015564,2]
[400281228,1767256246100,-1258.0,0.00015564,2]
[400281229,1767256246110,-151.0,0.00015564,2]
[400281230,1767256246120,-1258.0,0.00015564,2]
[400281231,1767256246129,-1258.0,0.00015564,2]
[400281232,1767256246140,-1258.0,0.00015564,2]
[400281233,1767256246150,-154.0,0.00015564,2]
[400281234,1767256246160,-154.0,0.00015564,2]
[400281235,1767256246170,-154.0,0.00015564,2]
[400281236,1767256246180,-218.87574282,0.00015564,2]
[400281237,1767256246189,-450.38,0.00015591,2]
[400281238,1767256246199,-266.72,0.00015613,2]
[400281239,1767256246209,-416.08266804,0.00015616,2]
[400281241,1767256246219,-500.0,0.00015616,2]
[400281242,1767256246228,-521.20759762,0.00015616,2]
[400281243,1767256246238,-2575.08989395,0.00015622,2]
[400281244,1767256246248,-8510.77485278,0.00015622,2]
[400281245,1767256246258,-200.0,0.00015624,2]
[400281246,1767256246267,-200.0,0.00015624,2]
[400281247,1767256246276,-587.0,0.00015634,2]
[400281248,1767256246286,-151.0,0.00015686,2]
[400281249,1767256246296,-151.0,0.00015686,2]
[400281250,1767256246306,-151.0,0.00015686,2]
[400281251,1767256246316,-151.0,0.00015688,2]
[400281252,1767256246326,-167.29,0.00015701,2]
[400281253,1767256246336,-10000.0,0.00015705,2]
[400281254,1767256246346,-172.67264665,0.0001575,2]
[400281255,1767256246356,-200.0,0.0001578,2]
[400281256,1767256246366,-390.23,0.000158,2]
[400281257,1767256246376,-200.02709707,0.00015816,2]
[400281258,1767256246386,-500.0,0.00015816,2]
[400281259,1767256246396,-502.28270041,0.00015816,2]
[400281260,1767256246406,-1000.0,0.00015852,2]
[400281261,1767256246416,-152.0,0.00015861,2]
[400281262,1767256246426,-152.0,0.00015861,2]
[400281263,1767256246436,-151.0,0.00015861,2]
[400281264,1767256246446,-151.0,0.00015861,2]
[400281265,1767256246455,-151.0,0.00015861,2]
[400281266,1767256246465,-838.0,0.00015861,2]
[400281267,1767256246475,-152.0,0.00015861,2]
[400281268,1767256246484,-1258.0,0.00015861,2]
[400281269,1767256246494,-838.0,0.00015861,2]
[400281270,1767256246504,-1258.0,0.00015861,2]
[400281271,1767256246513,-152.0,0.00015861,2]
[400281272,1767256246523,-1258.0,0.00015861,2]
[400281273,1767256246532,-152.0,0.00015861,2]
[400281274,1767256246542,-154.0,0.00015861,2]
[400281275,1767256246552,-154.0,0.00015861,2]
[400281276,1767256246561,-152.0,0.00015861,2]
[400281277,1767256246571,-152.0,0.00015861,2]
[400281278,1767256246581,-152.0,0.00015861,2]
[400281279,1767256246590,-152.0,0.00015861,2]
[400281280,1767256246600,-152.0,0.00015861,2]
[400281281,1767256246610,-152.0,0.00015861,2]
[400281282,1767256246620,-152.0,0.00015861,2]
[400281283,1767256246630,-152.0,0.00015861,2]
[400281284,1767256246640,-152.0,0.00015861,2]
[400281285,1767256246650,-152.0,0.00015861,2]
[400281286,1767256246660,-152.0,0.00015861,2]
[400281287,1767256246670,-152.0,0.00015861,2]
[400281288,1767256246681,-152.0,0.00015861,2]
[400281289,1767256246693,-152.0,0.00015861,2]
[400281290,1767256246703,-152.0,0.00015861,2]
[400281291,1767256246713,-152.0,0.00015861,2]
[400281292,1767256246723,-152.0,0.00015861,2]
[400281293,1767256246733,-152.0,0.00015861,2]
[400281294,1767256246742,-152.0,0.00015861,2]
[400281295,1767256246752,-152.0,0.00015861,2]
[400281296,1767256246762,-152.0,0.00015861,2]
[400281297,1767256246772,-152.0,0.00015861,2]
[400281298,1767256246782,-152.0,0.00015861,2]
[400281299,1767256246792,-152.0,0.00015861,2]
[400281300,1767256246802,-152.0,0.00015861,2]
[400281301,1767256246811,-152.0,0.00015861,2]
[400281302,1767256246821,-152.0,0.00015861,2]
[400281303,1767256246831,-152.0,0.00015861,2]
[400281304,1767256246840,-152.0,0.00015861,2]
[400281305,1767256246850,-152.0,0.00015861,2]
[400281306,1767256246860,-152.0,0.00015861,2]
[400281307,1767256246870,-152.0,0.00015861,2]
[400281308,1767256246880,-152.0,0.00015861,2]
[400281309,1767256246890,-152.0,0.00015861,2]
[400281310,1767256246900,-152.0,0.00015861,2]
[400281311,1767256246910,-152.0,0.00015861,2]
[400281312,1767256246920,-152.0,0.00015861,2]
[400281313,1767256246929,-152.0,0.00015861,2]
[400281314,1767256246940,-152.0,0.00015861,2]
[400281315,1767256246950,-286.99344643,0.00015861,2]
[400281316,1767256246960,-2575.08989395,0.00015878,2]
[400281317,1767256246970,-8510.77485278,0.00015878,2]
[400281318,1767256246980,-266.75845216,0.00015887,2]
[400281319,1767256246991,-30000.0,0.000159,2]
[400281320,1767256247002,-10000.0,0.00015905,2]
[400281321,1767256247011,-151.0,0.00015917,2]
[400281322,1767256247021,-151.0,0.00015917,2]
[400281323,1767256247031,-838.0,0.00015917,2]
[400281324,1767256247040,-1258.0,0.00015917,2]
[400281325,1767256247050,-866.99144917,0.00015917,2]
[400281326,1767256247059,-151.0,0.00015917,2]
[400281327,1767256247070,-1258.0,0.00015917,2]
[400281328,1767256247079,-151.0,0.00015917,2]
[400281329,1767256247090,-154.0,0.00015917,2]
[400281330,1767256247101,-200.0,0.00015938,2]
[400281331,1767256247111,-30262.1540251,0.00016,4]
[400281332,1767256247121,-163.07,0.0001604,2]
[400281333,1767256247131,-151.0,0.00016091,2]
[400281334,1767256247141,-302.0,0.00016091,2]
[400281335,1767256247151,-838.0,0.00016091,2]
[400281336,1767256247161,-1258.0,0.00016091,2]
[400281337,1767256247172,-838.0,0.00016091,2]